bitfinex/quotes_ETHUSD_20250213
["timestamp","ask_amount","ask_price","bid_price","bid_amount"]
[1739456159942,4.17824,2634.2,2633.5,3.79712]
[1739456160097,3.79691,2633.8,2633.3,0.7852]
[1739456160299,3.79658,2634.0,2633.3,0.7852]
[1739456160539,3.79651,2634.0,2633.4,3.79737]
[1739456160741,4.1783,2634.2,2633.5,4.255387]
[1739456160905,7.97465,2634.2,2633.6,3.79706]
[1739456161100,0.804,2634.9,2633.5,0.458257]
[1739456161317,0.804,2634.9,2633.2,3.0]
[1739456161318,3.79558,2634.7,2634.1,3.79627]
[1739456161950,3.79551,2634.7,2634.1,3.79627]
[1739456162103,3.79575,2634.6,2634.0,0.8093]
[1739456162304,3.79543,2634.8,2634.0,4.6057]
[1739456162503,3.79584,2634.5,2634.0,0.8093]
[1739456162813,3.79571,2634.6,2634.0,4.60568]
[1739456163019,3.79529,2634.9,2634.2,3.79613]
[1739456163217,3.79529,2634.9,2634.0,1.269868]
[1739456163218,4.17506,2635.0,2634.4,3.79582]
[1739456163408,3.79544,2634.8,2634.2,3.7961]
[1739456163602,3.79588,2634.5,2634.0,0.8093]
[1739456163904,3.79565,2634.6,2634.0,0.8093]
[1739456164053,3.79565,2634.6,2634.1,3.79634]
[1739456164557,0.379,2635.2,2634.2,3.7961]
[1739456164558,3.79537,2634.8,2634.2,3.7961]
[1739456164753,3.79537,2634.8,2634.2,7.59224]
[1739456164912,3.79494,2635.1,2634.5,3.79575]
[1739456165462,3.79589,2634.5,2634.0,0.8093]
[1739456165614,7.59178,2634.5,2634.0,0.8093]
[1739456165814,3.79589,2634.5,2634.0,0.8093]
[1739456166159,7.4153,2635.6,2634.0,0.8093]
[1739456166160,3.79434,2635.5,2634.5,3.79574]
[1739456166326,0.795,2635.6,2634.2,3.79621]
[1739456166327,3.79469,2635.3,2634.2,3.79621]
[1739456166659,3.79469,2635.3,2634.7,0.7565]
[1739456166819,3.79428,2635.6,2634.7,0.7565]
[1739456167015,0.378,2635.7,2634.8,0.03794759]
[1739456167251,0.378,2635.7,2635.5,3.79432]
[1739456167639,3.7931,2636.4,2635.4,0.7939]
[1739456167846,3.7931,2636.4,2635.5,0.5584242]
[1739456167847,3.79355,2636.1,2635.5,0.5584242]
[1739456168056,7.58714,2636.1,2635.5,3.79426]
[1739456168256,3.7935,2636.1,2635.5,3.79425]
[1739456168569,0.377,2636.4,2635.4,0.7939]
[1739456168570,3.79419,2635.7,2635.4,0.7939]
[1739456168944,4.1706,2636.1,2635.5,3.7943]
[1739456169129,3.7936,2636.1,2635.5,0.45882]
[1739456169327,3.79363,2636.0,2635.5,0.45882]
[1739456169530,4.17034,2636.2,2635.5,4.25307]
[1739456169752,4.17034,2636.2,2635.4,0.7939]
[1739456169753,3.79414,2635.7,2635.4,0.7939]
[1739456169968,3.79395,2635.8,2635.4,0.7939]
[1739456170128,3.79401,2635.8,2635.4,0.7939]
[1739456170334,3.79425,2635.6,2635.4,0.7939]
[1739456170672,0.377,2636.2,2634.6,0.7585]
[1739456170673,3.79501,2635.1,2634.6,0.7585]
[1739456170825,3.79457,2635.4,2634.8,3.79531]
[1739456171228,3.79405,2635.7,2635.1,3.79484]
[1739456171426,3.79399,2635.8,2635.2,3.79466]
[1739456171627,0.804,2636.4,2635.3,0.7772]
[1739456171870,3.79343,2636.2,2635.5,7.58859]
[1739456172055,7.58687,2636.2,2635.6,3.79417]
[1739456172339,7.96223,2636.4,2635.3,5.56754203]
[1739456172541,3.79306,2636.4,2635.9,3.79375]
[1739456172741,3.08,2637.1,2636.0,0.8106]
[1739456172742,0.804,2637.1,2636.0,0.8106]
[1739456173032,0.376,2637.2,2636.5,4.79034203]
[1739456173235,0.376,2637.2,2636.6,3.83068159]
[1739456173659,0.376,2637.2,2636.9,0.7598]
[1739456174064,3.79148,2637.5,2636.9,0.7598]
[1739456174451,3.79118,2637.7,2636.5,0.7598]
[1739456174653,4.59594,2637.2,2636.2,0.7598]
[1739456174829,3.79246,2636.9,2636.3,3.79315]
[1739456175191,3.79129,2637.7,2637.0,3.79207]
[1739456175397,3.79112,2637.8,2637.2,3.79187]
[1739456175564,3.79126,2637.7,2637.0,3.79207]
[1739456175763,0.376,2637.9,2637.2,0.7755]
[1739456175966,0.376,2637.9,2636.8,4.59227]
[1739456176166,3.79114,2637.8,2636.8,0.7999]
[1739456176396,7.58276,2637.6,2636.8,0.7999]
[1739456176578,0.804,2637.8,2636.8,0.7999]
[1739456176780,3.79233,2636.9,2636.8,0.7999]
[1739456176985,3.79233,2636.9,2636.1,8.58376203]
[1739456176986,3.7927,2636.7,2636.4,0.8323]
[1739456177396,0.379,2636.9,2635.8,4.56441]
[1739456177567,3.79299,2636.5,2635.9,3.79368]
[1739456177765,3.7929,2636.6,2635.8,5.4998852]
[1739456177983,3.79371,2636.0,2635.8,0.7705]
[1739456178224,7.58681,2636.2,2635.8,0.7705]
[1739456178355,3.79247,2636.8,2635.8,0.7705]
[1739456178561,3.7934,2636.2,2635.8,0.7705]
[1739456179080,7.5863,2636.4,2635.8,4.5643]
[1739456179413,3.7928,2636.6,2635.9,3.79374]
[1739456179575,0.379,2636.9,2635.8,0.7705]
[1739456179778,3.79372,2636.0,2635.8,0.7705]
[1739456180003,3.79308,2636.4,2635.8,0.7705]
[1739456180316,3.79253,2636.8,2636.2,3.7933]
[1739456180457,3.79235,2636.9,2636.3,4.17251]
[1739456180650,3.79272,2636.7,2636.1,3.79337]
[1739456181065,4.16894,2637.2,2635.8,0.7705]
[1739456181066,0.377,2637.2,2635.8,0.7705]
[1739456181287,3.79362,2636.1,2635.8,0.7705]
[1739456181459,3.79368,2636.0,2635.8,0.7705]
[1739456181664,3.79357,2636.1,2635.8,0.7705]
[1739456181994,3.79341,2636.2,2635.8,0.7705]
[1739456182147,0.7636,2637.0,2635.9,0.03793637]
[1739456182355,3.79257,2636.8,2636.0,3.79362]
[1739456182684,0.376,2636.9,2635.8,5.020838]
[1739456182893,0.7636,2637.5,2636.4,3.7929]
[1739456182894,3.79227,2637.0,2636.4,3.7929]
[1739456183098,0.376,2637.3,2636.7,3.79253]
[1739456183320,0.376,2637.3,2636.9,3.7922]
[1739456183476,0.376,2637.3,2636.7,3.79251]
[1739456183677,0.376,2637.3,2637.1,3.79202]
[1739456183901,0.376,2637.3,2637.2,4.542]
[1739456184115,0.376,2637.3,2637.2,0.7501]
[1739456184473,3.79097,2637.9,2637.2,0.7501]
[1739456184678,3.79089,2637.9,2637.4,3.79158]
[1739456184979,0.005,2638.4,2637.4,0.454168]
[1739456185282,0.375,2638.3,2637.2,0.7501]
[1739456185482,3.79099,2637.9,2637.2,4.54188]
[1739456185779,3.79099,2637.9,2637.3,3.79172]
[1739456186215,3.79113,2637.8,2637.2,0.7501]
[1739456186449,3.79099,2637.9,2637.2,0.7501]
[1739456186450,3.79153,2637.5,2637.2,0.7501]
[1739456187280,3.79118,2637.7,2636.8,0.8012]
[1739456187483,3.79118,2637.7,2636.5,4.79034203]
[1739456187484,2.2835,2637.7,2636.4,6.7937]
[1739456187685,3.79276,2636.6,2636.4,6.7937]
[1739456187897,3.7929,2636.5,2636.4,6.014]
[1739456188379,0.374,2636.9,2636.0,0.7797]
[1739456188603,3.79247,2636.8,2635.7,0.8237]
[1739456188804,2.65,2636.9,2635.9,3.79374]
[1739456188805,3.79271,2636.7,2635.9,3.79374]
[1739456189010,3.79271,2636.7,2636.1,3.79347]
[1739456189204,3.79271,2636.7,2635.9,3.79368]
[1739456189409,0.374,2636.9,2636.4,3.79298]
[1739456189721,1.1454,2637.8,2636.6,0.8144]
[1739456189922,4.16504,2637.8,2637.1,3.79201]
[1739456190246,0.7714,2638.2,2637.4,3.79147]
[1739456190394,7.58164,2638.0,2637.4,3.79147]
[1739456190601,3.791,2637.9,2637.3,3.79172]
[1739456190797,3.79101,2637.9,2637.2,4.60619]
[1739456191263,3.7906,2638.1,2637.5,3.79138]
[1739456191559,3.7906,2638.1,2637.5,0.379138]
[1739456191696,3.79105,2637.8,2637.2,8.39803]
[1739456191900,3.79043,2638.3,2637.3,3.79175]
[1739456192100,3.79043,2638.3,2637.7,3.79114]
[1739456192101,7.95389,2638.3,2637.7,3.79114]
[1739456192355,4.16343,2638.3,2637.6,3.79124]
[1739456192534,3.79059,2638.2,2637.6,3.79124]
[1739456192744,3.79061,2638.1,2637.7,0.379124]
[1739456193207,3.79087,2638.0,2637.4,3.7915]
[1739456193401,3.79091,2637.9,2637.4,3.7915]
[1739456193602,3.79061,2638.1,2637.4,3.7915]
[1739456193856,3.79061,2638.1,2637.6,3.79127]
[1739456194143,3.79032,2638.3,2637.8,3.79101]
[1739456194359,3.79032,2638.3,2637.9,0.7556]
[1739456194519,0.005,2638.4,2637.9,4.54647]
[1739456194924,0.005,2638.4,2638.2,3.79034]
[1739456195118,0.005,2638.4,2638.3,3.79031]
[1739456195711,0.005,2638.4,2638.3,4.59601]
[1739456195908,0.005,2638.4,2638.3,2.1233692]
[1739456196143,0.005,2638.4,2638.3,5.9136792]
[1739456196325,0.005,2638.4,2638.3,0.8057]
[1739456196665,0.005,2638.4,2638.3,4.59601]
[1739456197850,0.005,2638.4,2638.3,9.42424409]
[1739456198049,0.005,2638.4,2638.3,12.38635203]
[1739456198218,4.15854,2639.6,2638.6,3.0]
[1739456198428,3.78859,2639.5,2638.7,0.679003]
[1739456198620,3.78888,2639.3,2638.6,3.7898]
[1739456198821,3.78866,2639.5,2638.8,3.78958]
[1739456199146,3.78855,2639.6,2639.0,3.78924]
[1739456199317,3.7881,2639.9,2638.9,0.8188]
[1739456199523,3.78818,2639.8,2639.3,3.78879]
[1739456199723,3.78832,2639.7,2639.3,0.757789]
[1739456199940,0.37,2640.1,2639.1,3.7891]
[1739456200135,3.78863,2639.5,2639.0,3.0]
[1739456200507,3.78863,2639.5,2638.9,0.8188]
[1739456200508,3.78802,2639.9,2638.9,0.8188]
[1739456200710,3.78925,2639.1,2638.9,0.8188]
[1739456200936,3.78905,2639.2,2638.9,0.8188]
[1739456201136,3.78868,2639.5,2638.9,0.8188]
[1739456201336,0.37,2640.1,2638.9,1.279631]
[1739456201521,3.78911,2639.2,2638.9,0.8188]
[1739456201851,3.7887,2639.5,2638.9,4.60822]
[1739456202013,3.78881,2639.4,2638.9,0.8188]
[1739456202409,4.15779,2640.1,2638.9,0.8188]
[1739456202642,3.78871,2639.5,2638.9,0.8188]
[1739456202856,3.78924,2639.1,2638.9,0.8188]
[1739456203152,7.57849,2639.1,2638.9,0.8188]
[1739456203450,3.78924,2639.1,2638.9,0.8188]
[1739456203930,3.78859,2639.5,2638.9,0.8188]
[1739456204255,0.7728,2639.3,2638.6,6.01]
[1739456204550,3.78974,2638.7,2638.6,6.01]
[1739456205152,3.79089,2637.9,2637.8,0.7651]
[1739456205352,3.7896,2638.8,2637.8,0.7651]
[1739456205353,3.79084,2638.0,2637.8,0.7651]
[1739456205554,3.79084,2638.0,2637.4,0.8095]
[1739456205759,3.79132,2637.7,2637.4,0.8095]
[1739456205960,3.79095,2637.9,2637.4,0.8095]
[1739456205961,3.79105,2637.8,2637.4,0.8095]
[1739456206107,0.7589,2638.5,2637.5,3.79146]
[1739456206108,3.79068,2638.1,2637.5,3.79146]
[1739456206315,3.79067,2638.1,2637.5,3.79146]
[1739456206510,3.79129,2637.7,2637.1,10.969051]
[1739456206812,0.5575,2638.4,2637.1,10.969051]
[1739456206813,0.366,2637.9,2637.1,0.7899]
[1739456207044,3.79132,2637.6,2636.6,0.8174]
[1739456207359,0.809,2637.7,2636.6,0.8174]
[1739456207512,3.79132,2637.6,2636.8,3.79233]
[1739456207713,3.79171,2637.4,2636.8,3.79233]
[1739456207912,3.79171,2637.4,2636.8,4.632575]
[1739456208217,3.79189,2637.3,2636.6,0.8174]
[1739456208423,0.366,2637.6,2636.6,0.8174]
[1739456208424,3.79208,2637.1,2636.6,0.8174]
[1739456208622,3.7916,2637.5,2636.6,0.8174]
[1739456208933,3.79098,2637.9,2637.2,3.79179]
[1739456209152,3.79098,2637.9,2637.3,0.7608]
[1739456209479,3.79133,2637.6,2637.3,0.7608]
[1739456209686,3.79161,2637.4,2636.9,0.8174]
[1739456209842,3.79194,2637.2,2636.9,0.8174]
[1739456210187,3.79206,2637.1,2636.9,0.8174]
[1739456210339,3.79194,2637.2,2636.9,0.8174]
[1739456210540,3.79194,2637.2,2636.5,3.0]
[1739456210541,3.79161,2637.4,2636.5,0.8174]
[1739456210810,3.79261,2636.8,2636.5,0.8174]
[1739456211010,3.79209,2637.1,2636.5,0.8174]
[1739456211153,3.79237,2636.9,2636.5,0.8174]
[1739456211998,0.7859,2637.5,2636.1,3.0]
[1739456211999,3.79271,2636.7,2636.1,6.79342]
[1739456212201,3.79271,2636.7,2636.1,0.7757]
[1739456212402,0.364,2636.9,2636.4,3.79296]
[1739456212683,4.15635,2636.9,2636.2,4.47159]
[1739456212854,0.364,2636.9,2636.4,3.79304]
[1739456213047,4.15596,2637.2,2636.5,3.79282]
[1739456213246,3.79169,2637.4,2636.8,3.79237]
[1739456213555,3.79263,2636.7,2636.3,0.7757]
[1739456213757,3.79236,2636.9,2636.3,0.7757]
[1739456213984,3.79247,2636.8,2636.3,1.979757]
[1739456214480,3.79241,2636.9,2636.3,5.772897]
[1739456214779,3.79241,2636.9,2636.3,1.979757]
[1739456215082,3.79194,2637.2,2636.7,3.79248]
[1739456215286,3.79204,2637.1,2636.5,3.79282]
[1739456215454,4.34925,2637.3,2636.3,0.7757]
[1739456215657,3.79305,2636.4,2636.0,6.7995]
[1739456215881,3.79248,2636.8,2636.0,6.7995]
[1739456216047,0.7578,2637.0,2636.0,6.7995]
[1739456216048,3.79226,2637.0,2636.4,3.79297]
[1739456216243,3.79195,2637.2,2636.6,3.79265]
[1739456216444,3.79195,2637.2,2636.1,3.79344]
[1739456216445,3.79195,2637.2,2636.1,3.0]
[1739456216638,3.79195,2637.2,2636.5,3.79281]
[1739456216639,3.79212,2637.1,2636.5,3.79281]
[1739456216874,3.79222,2637.0,2636.3,4.58456]
[1739456217069,3.79252,2636.8,2636.3,0.7915]
[1739456217289,3.79299,2636.5,2636.0,6.008]
[1739456217484,3.79306,2636.4,2636.0,6.008]
[1739456217690,3.79299,2636.5,2636.0,6.008]
[1739456218045,7.58652,2636.3,2636.0,6.008]
[1739456218240,3.79319,2636.3,2636.0,6.008]
[1739456218762,3.79315,2636.4,2636.0,6.008]
[1739456219085,3.79299,2636.5,2636.0,6.008]
[1739456219286,3.79298,2636.5,2636.0,6.008]
[1739456219486,0.0075,2636.8,2636.0,6.008]
[1739456219694,7.5868,2636.2,2636.0,6.008]
[1739456219850,3.79312,2636.4,2636.0,6.008]
[1739456220418,0.36,2636.5,2636.1,3.79347]
[1739456220621,7.58447,2637.0,2636.4,3.79295]
[1739456220777,7.58447,2637.0,2636.1,0.7816]
[1739456220778,0.7578,2637.2,2636.1,0.7816]
[1739456220978,3.79299,2636.5,2636.1,0.7816]
[1739456221210,3.79305,2636.4,2636.1,0.7816]
[1739456221415,3.79269,2636.7,2636.1,0.7816]
[1739456221738,0.809,2638.0,2636.3,4.79034203]
[1739456221938,0.359,2637.3,2636.7,3.79254]
[1739456222079,4.59978,2638.0,2636.5,0.7874]
[1739456222282,3.79134,2637.6,2637.1,3.79198]
[1739456222580,3.79048,2638.2,2637.5,3.79145]
[1739456222775,3.79011,2638.5,2637.4,3.79161]
[1739456223158,0.359,2638.8,2638.1,3.7905]
[1739456223280,4.59779,2639.4,2638.2,0.82529988]
[1739456223653,3.78904,2639.2,2638.5,3.7899]
[1739456223798,3.78918,2639.1,2638.5,3.7899]
[1739456223977,3.78904,2639.2,2638.2,0.7874]
[1739456224171,3.78904,2639.2,2638.5,3.79001]
[1739456224391,3.78917,2639.1,2638.5,3.79001]
[1739456224690,3.78904,2639.2,2638.5,3.79001]
[1739456224898,3.78885,2639.4,2638.5,0.379001]
[1739456225210,3.78902,2639.2,2638.5,4.94288762]
[1739456225408,3.78942,2639.0,2638.5,0.77399662]
[1739456225590,3.78988,2638.6,2638.2,0.7874]
[1739456225791,3.78979,2638.7,2638.2,0.7874]
[1739456226126,3.79,2638.6,2638.2,0.7874]
[1739456226289,3.78897,2639.3,2638.6,3.78985]
[1739456226628,3.78956,2638.9,2638.2,5.636652]
[1739456226806,3.7894,2639.0,2638.3,3.79028]
[1739456227008,0.358,2639.2,2638.2,5.636542]
[1739456227183,3.78917,2639.1,2638.4,3.79017]
[1739456227383,4.14707,2639.2,2638.3,3.0]
[1739456227588,4.14707,2639.2,2638.3,3.4846212]
[1739456227782,4.14703,2639.2,2639.0,0.75624608]
[1739456227984,0.358,2639.2,2639.0,0.75624608]
[1739456228189,3.78917,2639.1,2639.0,0.75624608]
[1739456228399,3.78946,2638.9,2638.3,3.4846212]
[1739456228721,0.358,2639.2,2638.4,3.79005]
[1739456228722,3.78941,2639.0,2638.4,3.79005]
[1739456229089,4.14703,2639.2,2638.5,3.78993]
[1739456229300,0.358,2639.2,2638.8,3.78959]
[1739456229602,0.358,2639.2,2638.6,3.78977]
[1739456229807,4.14706,2639.2,2638.6,3.78977]
[1739456230001,0.7831,2639.5,2638.6,3.78988]
[1739456230212,0.357,2639.8,2639.3,3.78883]
[1739456230465,0.357,2639.8,2638.8,4.59577]
[1739456230664,0.357,2639.8,2638.8,0.8063]
[1739456230806,4.14525,2639.8,2639.2,3.789]
[1739456231125,0.809,2639.9,2638.8,0.8063]
[1739456231322,0.809,2639.9,2639.1,7.57817]
[1739456231323,3.78826,2639.8,2639.1,7.57817]
[1739456231521,1.165,2639.9,2639.2,3.78901]
[1739456231755,0.356,2639.9,2639.0,0.0378833]
[1739456232018,3.7881,2639.9,2639.3,3.78883]
[1739456232334,4.14374,2640.1,2639.5,3.78858]
[1739456232505,0.356,2640.1,2639.1,3.78914]
[1739456232815,3.7886,2639.5,2639.0,3.78925]
[1739456233016,0.356,2640.1,2639.0,4.30478142]
[1739456233217,3.78839,2639.7,2639.0,0.51552142]
[1739456233424,3.78839,2639.7,2639.1,3.78908]
[1739456233619,0.356,2640.1,2639.1,3.78908]
[1739456233821,3.78804,2639.9,2639.4,3.78866]
[1739456234149,3.78799,2640.0,2639.4,3.78866]
[1739456234341,3.78824,2639.8,2639.2,3.789]
[1739456234512,3.78837,2639.7,2639.3,0.3789]
[1739456234856,3.78809,2639.9,2639.2,3.7889]
[1739456235447,3.78881,2639.4,2638.9,0.5596642]
[1739456235617,0.0075,2640.1,2639.2,3.78899]
[1739456235618,3.78832,2639.7,2639.2,3.78899]
[1739456235821,4.14268,2640.2,2639.2,3.78891]
[1739456236023,0.355,2640.2,2639.2,3.7889]
[1739456236332,3.78847,2639.6,2639.0,3.78917]
[1739456236719,3.78823,2639.8,2639.2,3.78894]
[1739456236923,3.78823,2639.8,2639.2,3.78893]
[1739456237257,3.78796,2640.0,2639.5,3.78855]
[1739456237551,4.14259,2640.2,2639.6,0.7924]
[1739456237703,3.78782,2640.1,2639.6,0.7924]
[1739456238108,4.14259,2640.2,2639.6,0.7924]
[1739456238375,3.78817,2639.8,2639.5,0.378855]
[1739456238530,3.78809,2639.9,2639.3,4.58496]
[1739456238710,3.78773,2640.1,2639.5,3.78849]
[1739456238905,3.78773,2640.1,2639.6,3.78837]
[1739456239110,4.14055,2640.3,2639.6,3.78837]
[1739456239323,3.7873,2640.4,2639.8,3.78807]
[1739456239541,3.78713,2640.6,2639.9,3.78791]
[1739456239853,3.78676,2640.8,2640.0,0.7621]
[1739456240150,3.78692,2640.7,2640.2,3.78755]
[1739456240526,3.78723,2640.5,2640.0,4.54984]
[1739456240925,3.78724,2640.5,2640.0,4.54984]
[1739456241123,3.78737,2640.4,2640.0,1.6337747]
[1739456241339,3.78753,2640.3,2640.0,0.7621]
[1739456241527,3.78737,2640.4,2640.0,0.7621]
[1739456241852,3.78711,2640.6,2639.8,0.378807]
[1739456241853,3.78707,2640.6,2639.8,0.378807]
[1739456242025,3.78792,2640.0,2639.6,0.8086]
[1739456242226,3.78798,2640.0,2639.6,0.8086]
[1739456242641,0.7801,2640.7,2639.6,0.8086]
[1739456242819,7.57539,2640.2,2639.6,4.59698]
[1739456243022,0.5575,2640.6,2639.6,0.8086]
[1739456243218,3.78838,2639.7,2639.3,0.8316]
[1739456243565,3.7886,2639.5,2639.3,1.293651]
[1739456243730,3.7886,2639.5,2638.9,1.3912642]
[1739456244141,3.78816,2639.8,2638.5,0.7681]
[1739456244457,3.78917,2639.1,2638.5,0.7681]
[1739456244630,3.78917,2639.1,2638.5,4.55812]
[1739456244631,3.78945,2639.0,2638.5,4.55812]
[1739456244832,3.78917,2639.1,2638.5,0.7681]
[1739456245021,3.78896,2639.3,2638.7,3.78963]
[1739456245215,3.78903,2639.2,2638.7,4.624397]
[1739456245480,3.78924,2639.1,2638.7,0.834767]
[1739456245677,3.78976,2638.7,2638.2,3.79038]
[1739456245884,3.78895,2639.3,2638.1,3.8402959]
[1739456246063,3.7885,2639.6,2639.0,8.38082]
[1739456246244,0.351,2639.6,2639.1,3.78904]
[1739456246456,4.1391,2639.9,2639.4,3.7887]
[1739456246653,0.351,2639.9,2639.3,3.78877]
[1739456246839,0.351,2639.9,2639.1,3.78906]
[1739456246840,4.13902,2639.9,2639.1,3.78906]
[1739456247041,4.13905,2639.9,2639.1,0.46293435]
[1739456247281,3.78755,2640.3,2639.8,0.7964]
[1739456247488,0.7831,2640.8,2639.8,0.7964]
[1739456247693,3.78702,2640.6,2639.9,3.78802]
[1739456247867,3.78723,2640.5,2639.9,7.57596]
[1739456248194,3.931516,2641.0,2639.9,1.137236]
[1739456248334,0.496016,2641.0,2639.8,0.7964]
[1739456248535,3.78697,2640.7,2640.1,3.0]
[1739456248757,7.57394,2640.7,2640.1,6.78759]
[1739456249048,3.78719,2640.5,2640.0,3.0]
[1739456249300,3.78744,2640.3,2639.8,0.7964]
[1739456249503,3.78744,2640.3,2639.6,4.53339889]
[1739456249504,3.78692,2640.7,2639.5,4.79034203]
[1739456249631,0.0075,2640.3,2639.0,0.7784]
[1739456249828,3.78787,2640.0,2639.0,0.7784]
[1739456250077,3.78912,2639.2,2638.7,0.7784]
[1739456250234,3.78901,2639.3,2638.8,3.0]
[1739456250446,3.78946,2638.9,2638.4,0.7784]
[1739456250777,3.78946,2638.9,2638.4,1.235263]
[1739456251091,1.1129,2640.8,2639.2,3.78902]
[1739456251300,3.78783,2640.1,2639.5,3.78856]
[1739456251430,3.78783,2640.1,2639.2,7.79034203]
[1739456251431,3.78788,2640.0,2639.4,3.78865]
[1739456251636,1.1129,2640.8,2639.8,0.7597]
[1739456251931,0.35,2640.8,2640.1,3.0]
[1739456252155,0.35,2640.8,2639.9,3.0]
[1739456252353,7.57396,2640.7,2640.1,3.78769]
[1739456252577,3.78713,2640.6,2639.9,7.57595]
[1739456252891,0.8165,2640.7,2639.5,1.177065]
[1739456253199,3.78775,2640.1,2639.5,0.7982]
[1739456253372,3.78763,2640.2,2639.5,3.7982]
[1739456253551,3.7879,2640.0,2639.5,7.58676]
[1739456253730,3.78701,2640.6,2639.5,0.7982]
[1739456253930,3.78768,2640.2,2639.5,0.7982]
[1739456254145,3.78771,2640.2,2639.6,3.7884]
[1739456254384,3.78847,2639.6,2639.1,0.7763]
[1739456254587,3.78868,2639.5,2639.1,0.7763]
[1739456254991,7.5774,2639.5,2638.9,3.78941]
[1739456255170,7.5774,2639.5,2638.9,0.83552]
[1739456255171,3.78876,2639.4,2638.9,0.83552]
[1739456255373,7.57737,2639.5,2638.9,7.62495]
[1739456255717,3.78847,2639.6,2639.0,3.78931]
[1739456255880,0.352,2639.8,2639.2,3.78892]
[1739456256079,0.8034,2640.0,2639.4,3.78861]
[1739456256080,4.59133,2640.0,2639.4,3.78861]
[1739456256414,4.13896,2640.0,2639.3,3.78878]
[1739456256569,4.13896,2640.0,2639.2,3.78894]
[1739456256570,3.78839,2639.7,2639.0,3.78922]
[1739456256906,3.7887,2639.5,2639.0,3.0]
[1739456257114,7.57739,2639.5,2639.0,3.0]
[1739456257310,3.78839,2639.7,2639.1,3.78915]
[1739456257543,7.57681,2639.7,2639.1,3.78915]
[1739456257682,0.351,2640.0,2639.1,0.841395]
[1739456257878,3.78802,2639.9,2639.2,3.78902]
[1739456258106,3.78845,2639.6,2639.1,3.0]
[1739456258305,7.57702,2639.6,2639.1,3.0]
[1739456258554,0.352,2640.1,2638.8,0.7763]
[1739456258555,0.0075,2639.8,2638.8,0.7763]
[1739456258755,0.7849,2639.8,2638.8,0.7763]
[1739456259073,0.7774,2639.8,2639.1,3.78908]
[1739456259207,3.78835,2639.7,2639.1,7.57818]
[1739456259561,3.78793,2640.0,2638.8,0.7763]
[1739456259761,3.78793,2640.0,2639.5,3.78848]
[1739456260064,7.57652,2639.8,2639.3,3.78879]
[1739456260268,3.78833,2639.7,2639.1,3.78905]
[1739456260425,3.78833,2639.7,2639.2,4.167855]
[1739456260629,3.78845,2639.6,2639.2,0.378905]
[1739456261170,3.78878,2639.4,2638.9,3.78945]
[1739456261806,3.78855,2639.6,2639.1,3.78913]
[1739456262025,0.79,2640.5,2639.2,4.79034203]
[1739456262350,0.79,2640.5,2639.0,0.8123]
[1739456262534,0.79,2640.5,2638.4,15.04328503]
[1739456262535,0.79,2639.9,2638.7,0.8123]
[1739456262868,3.78829,2639.8,2638.7,0.8123]
[1739456263027,0.352,2639.9,2639.4,3.78866]
[1739456263225,3.78817,2639.8,2639.4,3.78866]
[1739456263543,3.78801,2640.0,2639.4,3.78866]
[1739456263739,4.93129,2640.2,2639.6,3.78843]
[1739456263956,4.13959,2640.2,2639.3,3.0]
[1739456264122,3.78793,2640.0,2639.4,0.7790342]
[1739456264320,4.1397,2640.2,2639.4,0.7790342]
[1739456264520,0.352,2640.2,2639.0,4.5796]
[1739456264754,3.7885,2639.6,2639.1,3.0]
[1739456264953,3.78862,2639.5,2639.1,3.0]
[1739456265157,0.7795,2639.7,2638.6,0.7989]
[1739456265328,0.7795,2639.7,2638.7,3.78962]
[1739456265329,3.78902,2639.2,2638.7,3.78962]
[1739456265782,3.78877,2639.4,2638.8,3.78954]
[1739456265981,3.7891,2639.2,2638.6,3.7989]
[1739456266163,3.7891,2639.2,2638.7,3.78965]
[1739456266366,3.78918,2639.1,2638.6,4.5887]
[1739456266565,3.78918,2639.1,2638.7,3.0]
[1739456266765,3.78884,2639.4,2638.8,3.78954]
[1739456266986,3.78897,2639.3,2638.7,3.7896]
[1739456267170,3.78884,2639.4,2638.7,4.24845]
[1739456267496,3.78905,2639.2,2638.6,0.7989]
[1739456267667,3.78927,2639.1,2638.6,4.58873]
[1739456267865,7.57815,2639.2,2638.7,3.78962]
[1739456268067,7.57817,2639.2,2638.7,3.78962]
[1739456268284,3.78905,2639.2,2638.7,3.78962]
[1739456268596,3.78905,2639.2,2638.5,3.0]
[1739456268798,3.78905,2639.2,2638.7,3.0]
[1739456269103,3.78888,2639.3,2638.7,6.78974]
[1739456269281,3.78882,2639.4,2638.7,6.78974]
[1739456269530,3.78906,2639.2,2638.7,6.78974]
[1739456269793,7.57817,2639.2,2638.7,6.78974]
[1739456269997,3.78917,2639.1,2638.7,6.78974]
[1739456270209,3.78917,2639.1,2638.5,3.78995]
[1739456270384,3.7894,2639.0,2638.4,6.462863]
[1739456270586,3.78912,2639.2,2638.5,6.78997]
[1739456270792,0.7795,2639.7,2638.5,3.0]
[1739456270987,3.78895,2639.3,2638.8,3.78946]
[1739456271207,7.57792,2639.3,2638.8,3.78946]
[1739456271432,0.0075,2639.5,2638.5,3.0]
[1739456271566,3.78954,2638.9,2638.4,6.006]
[1739456272466,3.78976,2638.7,2638.4,6.006]